Cogmind - Beta 13 @@@ ROGUE MODE // 2024.06.20 @ 18:00:06 Player: celerysam Result: Destroyed by Y-45 Defender with Beam Rifle Performance ------------- Evolutions (1) 500 Regions Visited (2) 400 Robots Destroyed (10) 50 Value Destroyed (250) 250 Prototype IDs (0) 0 Alien Tech Used (0) 0 Bonus (0) 0 TOTAL SCORE: 1200 Bonus ------- None Cogmind --------- Core Integrity 0/400 Matter 216/300 Energy 100/100 System Corruption 0% Temperature Cool (9) Movement Core (150) Ox2 Location -9/Materials Parts ------- > --- POWER (1) -------- (None) > --- PROPULSION (4) --- Light Treads > --- UTILITY (2) ------ Small Storage Unit Sensor Array > --- WEAPON (2) ------- Mace > --- INVENTORY (8) ---- Light Treads Airjet Airjet Airjet Airjet Hacking Suite Hacking Suite Hacking Suite Peak State ------------ > --- POWER ------------ Ion Engine > --- PROPULSION ------- Wheel Wheel Compact Wheel > --- UTILITY ---------- Small Storage Unit Medium Armor Plating > --- WEAPON ----------- EM Pulse Gun Heavy Assault Rifle > --- INVENTORY -------- Ion Engine Light Treads Light Treads Aluminum Leg Aluminum Leg Aluminum Leg Sensor Array Light Assault Rifle [Rating: 10] Favorites ----------- Power Ion Engine Engine Ion Engine Propulsion Wheel Treads Light Treads Leg Aluminum Leg Wheel Wheel Utility Small Storage Unit Device Sensor Array Storage Small Storage Unit Protection Medium Armor Plating Weapon EM Pulse Gun Energy Gun EM Pulse Gun Ballistic Gun Light Assault Rifle Impact Weapon Mace Build | -11 -10 -9 ------- Run | Yrd Mat Mat Slots Evolved 2 | . . 2 Power . | . . . Propulsion 2 | . . 2 Utility . | . . . Weapon . | . . . Parts Attached 16 | 6 1 9 Power 2 | 1 . 1 Engine 2 | 1 . 1 Core . | . . . Reactor . | . . . Propulsion 7 | 2 . 5 Treads 1 | . . 1 Leg 3 | . . 3 Wheel 3 | 2 . 1 Hover . | . . . Flight . | . . . Utility 3 | 1 1 1 Device 1 | . . 1 Storage 1 | 1 . . Processor . | . . . Hackware . | . . . Protection 1 | . 1 . Artifact . | . . . Weapon 4 | 2 . 2 Energy Gun 1 | 1 . . Energy Cannon . | . . . Ballistic Gun 2 | 1 . 1 Ballistic Cannon . | . . . Launcher . | . . . Special Weapon . | . . . Impact Weapon 1 | . . 1 Slashing Weapon . | . . . Piercing Weapon . | . . . Special Melee Weapon . | . . . Unidentified Prototypes . | . . . Parts Lost 10 | . . 10 Power 2 | . . 2 Propulsion 6 | . . 6 Utility 1 | . . 1 Weapon 1 | . . 1 Highest Loss Streak 10 | . . 10 To Critical Strikes . | . . . Average Slot Usage (%) 82 | . 91 75 Engine 12 | . 14 11 Treads 1 | . . 2 Leg 3 | . . 5 Wheel 22 | . 28 18 Device 1 | . . 2 Storage 12 | . 14 11 Protection 6 | . 6 6 Energy Gun 10 | . 14 7 Ballistic Gun 9 | . 14 5 Impact Weapon 3 | . . 5 Naked Turns . | . . . Heaviest Build 22 | 13 20 22 Greatest Support 36 | 20 20 36 Greatest Overweight (x) 2 | 1 . 2 Average Overweight (x) . | . . . Largest Inventory Capacity 8 | 8 8 8 Average Capacity 7 | 7 8 8 Most Carried 8 | 6 8 8 Average Carried 6 | 3 7 6 Final Capacity 8 | 8 8 8 Final Carried 8 | 6 8 8 Class Distribution -------------------- 100% | Mutant Dominant Class ---------------- Mutant | -10/Materials Mutant | -9/Materials Resources | -11 -10 -9 ----------- Run | Yrd Mat Mat Matter Collected 250 | 162 37 51 Remotely . | . . . Salvage Created 314 | . 138 176 Parts 11 | . 5 6 Haulers Intercepted . | . . . Recyclers Shooed . | . . . Parts Field Recycled . | . . . Retrieved Matter . | . . . Parts Self-Destructed . | . . . Prevented . | . . . Kills | -11 -10 -9 ------- Run | Yrd Mat Mat Combat Hostiles Destroyed 7 | . 3 4 Melee 1 | . . 1 Guns 3 | . 2 1 AOE 1 | . 1 . Classes Destroyed 6 | . 3 3 Recycler 1 | . 1 . Operator 1 | . . 1 Watcher 1 | . 1 . Swarmer 3 | . 3 . Grunt 2 | . . 2 Duelist 2 | . . 2 Best Kill Streak 4 | . 4 2 Combat Bots Only 2 | . 2 2 Max Kills in Single Turn 3 | . 3 1 Gunslinging . | . . . Exploded 1 | . 1 . Melee 1 | . . 1 Uniques/NPCs Destroyed . | . . . Combat | -11 -10 -9 -------- Run | Yrd Mat Mat Hostile Shots Fired 142 | . 9 133 Missed 36 | . 2 34 Damage Taken 1470 | . 88 1382 Core 432 | . 30 402 Absorbed by Shields . | . . . Core Remaining (%) 94 | 100 88 . Volleys Fired 13 | 1 5 7 Largest 2 | 2 2 2 Hottest 63 | 60 60 63 Shots Fired 25 | 2 10 13 Gun 25 | 2 10 13 Cannon . | . . . Launcher . | . . . Special . | . . . Kinetic 12 | 1 5 6 Thermal . | . . . Explosive . | . . . Electromagnetic 13 | 1 5 7 Robot Hit Streak 3 | . 1 3 Robot Miss Streak 2 | . 2 2 Penetration Max . | . . . Secondary Targets 1 | . 1 . Max Gunslinging Chain 1 | . 1 . Shots Hit Robots 28 | . 4 24 Core Hits 10 | . 6 4 Critical Kills 2 | . 1 1 Critical Parts Destroyed 2 | . . 2 Critical Strikes 4 | . 1 3 Destroy 1 | . 1 . Smash 3 | . . 3 Melee Attacks 19 | . . 19 Impact 19 | . . 19 Slashing . | . . . Piercing . | . . . Sneak Attacks . | . . . Combat Hostiles . | . . . Follow-up Attacks . | . . . Damage Inflicted 758 | . 157 601 Guns 168 | . 54 114 Cannons . | . . . Explosions 103 | . 103 . Melee 487 | . . 487 Ramming . | . . . Kinetic 69 | . 21 48 Thermal 103 | . 103 . Explosive . | . . . Electromagnetic 99 | . 33 66 Impact 487 | . . 487 Slashing . | . . . Piercing . | . . . Highest Corruption . | . . . Average Corruption . | . . . Corruption Purged . | . . . Corruption Blocked . | . . . Overload Shots . | . . . Overflow Damage 88 | . . 88 Projectiles . | . . . Explosions . | . . . Melee 88 | . . 88 Knockbacks 6 | . . 6 Impact 6 | . . 6 Kinetic . | . . . Secondary . | . . . Self-Inflicted Damage 28 | . 28 . Shots 1 | . 1 . Rammed . | . . . Targets Rammed . | . . . Kicked . | . . . Crushed . | . . . Highest Temperature 73 | 20 73 22 Average Temperature 16 | 15 26 8 Received Heat Transfer 522 | . 6 516 Siege Activations . | . . . Robots Corrupted 1 | . . 1 Combat Hostiles 1 | . . 1 Parts Fried 1 | . . 1 Impact Corruptions 4 | . . 4 Robots Melted . | . . . Combat Hostiles . | . . . Parts Melted . | . . . Heat Transferred 100 | . 100 . Parts Sabotaged . | . . . Parts Stolen . | . . . Parts Stripped . | . . . Power Chain Reactions 1 | . 1 . Alert | -11 -10 -9 ------- Run | Yrd Mat Mat Peak Influence 168 | . 129 168 Initial 53 | . . 53 Average 66 | . 34 116 Maximum Alert Level . | . . . Low Security (%) 100 | 100 100 100 Level 1 . | . . . Level 2 . | . . . Level 3 . | . . . Level 4 . | . . . Level 5 . | . . . High Security . | . . . Max Security . | . . . Squads Dispatched 1 | . 1 . Investigation 1 | . 1 . Extermination . | . . . Reinforcement . | . . . Assault . | . . . Garrison . | . . . Intercept . | . . . Searches Triggered . | . . . Construction Impeded . | . . . Haulers Reinforced . | . . . Active Scanning Responses . | . . . Cargo Convoy Interrupts . | . . . Stealth | -11 -10 -9 --------- Run | Yrd Mat Mat Distress Signals 3 | . 1 2 Communications Jammed . | . . . Distress Signals . | . . . Times Spotted 20 | . 7 13 Peak Tracking Total 5 | . 4 5 Tactical Retreats 2 | . . 2 Traps | -11 -10 -9 ------- Run | Yrd Mat Mat Traps Triggered . | . . . Indirectly . | . . . Trap Hack Attempts . | . . . Triggered . | . . . Disarmed . | . . . Reprogrammed . | . . . Reused . | . . . Traps Extracted . | . . . Installed . | . . . Triggered . | . . . Machines | -11 -10 -9 ---------- Run | Yrd Mat Mat Machines Disabled 2 | . 1 1 Max in Single Turn 1 | . 1 1 Machines Repaired . | . . . Machines Dismantled . | . . . Machines Sabotaged . | . . . Overloaded Fab Kills . | . . . Hacking | -11 -10 -9 --------- Run | Yrd Mat Mat Machines Accessed 4 | . 3 1 Terminals 3 | . 3 . Fabricators . | . . . Repair Stations . | . . . Recycling Units 1 | . . 1 Scanalyzers . | . . . Garrison Access . | . . . Total Hacks 6 | . 4 2 Successful 3 | . 2 1 Failed 3 | . 2 1 Catastrophic 1 | . 1 . Database Lockouts . | . . . Manual 3 | . 2 1 Terminals 4 | . 4 . Fabricators . | . . . Repair Stations . | . . . Recycling Units 2 | . . 2 Scanalyzers . | . . . Garrison Access . | . . . Terminal Hacks 1 | . 1 . Branch Access Points 1 | . 1 . Fabricator Hacks . | . . . Repair Station Hacks . | . . . Recycling Unit Hacks 1 | . . 1 Report Inventory 1 | . . 1 Scanalyzer . | . . . Garrison Access Hacks . | . . . Unauthorized Hacks 1 | . 1 . Terminals 1 | . 1 . Assimilate 1 | . 1 . Fabricators . | . . . Repair Stations . | . . . Recycling Units . | . . . Scanalyzers . | . . . Garrison Access . | . . . Data Cores Recovered 1 | . . 1 Used . | . . . Hacking Detections 2 | . 1 1 Full Trace Events 1 | . 1 . Feedback Events . | . . . Feedback Blocked . | . . . Robot Schematics Acquired . | . . . Robots Built . | . . . Authchips . | . . . Time . | . . . Total Robot Build Rating . | . . . Part Schematics Acquired . | . . . Parts Built . | . . . Authchips . | . . . Time . | . . . Total Part Build Rating . | . . . Parts Repaired . | . . . Time . | . . . Parts Recycled . | . . . Recycled Matter . | . . . Retrieved Matter . | . . . Retrieved Components . | . . . Parts Scanalyzed . | . . . Part Schematics Acquired . | . . . Parts Damaged . | . . . Bothacking | -11 -10 -9 ------------ Run | Yrd Mat Mat Used RIF Installer . | . . . Robots Hacked . | . . . Non-combat . | . . . Combat . | . . . Robot Hacks Applied . | . . . Relay Couplers Released . | . . . Fabnet Peak Effective % . | . . . Robots Rewired . | . . . Allies Hacked . | . . . Hacks Repelled . | . . . Allies | -11 -10 -9 -------- Run | Yrd Mat Mat Total Allies . | . . . Largest Group . | . . . Highest-Rated Group . | . . . Highest-Rated Ally . | . . . Total Orders . | . . . Ally Attacks . | . . . Total Damage . | . . . Kills . | . . . Allies Corrupted . | . . . Allies Melted . | . . . Intel | -11 -10 -9 ------- Run | Yrd Mat Mat Robot Analysis Total . | . . . Derelict Logs Recovered . | . . . Drone Launches . | . . . Drone Recoveries . | . . . Exploration | -11 -10 -9 ------------- Run | Yrd Mat Mat Turns Passed 366 | 63 133 170 Spaces Moved 269 | 53 136 80 Core 8 | 8 . . Treads . | . . . Legs 16 | . . 16 Wheels 245 | 45 136 64 Hover . | . . . Flight . | . . . Fastest Speed 50 | 50 80 86 Average Speed 84 | 81 80 94 Slowest Speed 190 | 100 80 190 Overloaded Moves . | . . . Propulsion Burnouts . | . . . Robots Hopped . | . . . Cave-ins Triggered . | . . . Exploration Rate (%) 15 | 3 31 12 Regions Visited 2 Branch Regions . Pre-discovered Areas . | . . . Known Exits Taken . | . . . Unknown Exits Taken 2 | 1 1 . Scrap Searched . | . . . Spaces Dug . | . . . Terrain Destroyed 2 | . 2 . Melee . | . . . Projectile . | . . . AOE 2 | . 2 . Terrain Rammed . | . . . Walls Destroyed . | . . . Machines Disabled . | . . . Actions | -11 -10 -9 --------- Run | Yrd Mat Mat Total 350 | 71 151 128 Wait 8 | . 5 3 Move 267 | 52 135 80 Hop . | . . . Pick Up 25 | 12 4 9 Fast Attach . | . . . Attach 15 | 6 1 8 Detach . | . . . Swap 1 | . . 1 Drop 2 | . 1 1 Fire 13 | 1 5 7 Melee 19 | . . 19 Ram . | . . . Kick . | . . . Crush . | . . . Escape Stasis . | . . . Rewire . | . . . Trap . | . . . Miscellaneous . | . . . Route ------- -11/Scrapyard -10/Materials (discovered 2 exits: *Mat / Min) -9/Materials History --------- Turn | Location | Event 31 | -11/Scrapyard | Discovered new exit (range 15) 64 | -11/Scrapyard | Entered Materials 75 | -10/Materials | Identified exit to Mines 193 | -10/Materials | Discovered new exit (range 6) 197 | -10/Materials | Entered another Materials area 197 | -9/Materials | Evolved 2 slots: Propulsion x2 319 | -9/Materials | Core integrity fell below 50% 337 | -9/Materials | Core integrity fell below 20% 349 | -9/Materials | Build established: Mutant 367 | -9/Materials | Destroyed by Y-45 Defender with Beam Rifle Last Messages --------------- 00313_ Wheel destroyed. 00316_ L-31 Rogue knocked back. 00326_ M-13 Machinist repairs G-34 Mercenary. 00329_ L-31 Rogue knocked back. 00331_ M-13 Machinist repairs G-34 Mercenary. 00335_ Aluminum Leg destroyed. 00337_ Destroyed Imp. Ion Engine. 00337_ L-31 Rogue system corrupted by crushing effect. 00337_ L-31 Rogue knocked back. 00338_ L-31 Rogue system terminally corrupted. 00340_ M-13 Machinist fits Backup Propulsion I on G-34 Mercenary. 00341_ Acquired 31 matter. 00342_ M-13 Machinist repairs Heat Sink. 00344_ M-13 Machinist repairs Aluminum Leg. 00346_ M-13 Machinist repairs Ion Engine. 00350_ Acquired Airjet. 00360_ Acquired Hacking Suite. 00364_ Aluminum Leg destroyed. 00365_ Ion Engine destroyed. 00366_ Acquired Hacking Suite. Map ----- +----------------------------------------------------+ | ?????????????????????????????????????????????????? | | ?????????????????????????????????????????????????? | | ?????????????????????????????????????????????????? | | ?????? ???????????????????????????????????????? | | ?????# ???????????????????????????????????????? | | ?????# ???????????????????????????????????????? | | ?????# #??????????????????????????????????????? | | ?????# #??????????????????????????????????????? | | ?????# #??????????????????????????????????????? | | ?????# #########+#????????????????????????????? | | ?????# # ^ ?????????????????????????????? | | ?????# ???????????????????????????? | | ?????# ???????????????????????????? | | ###### ???????????????????????????? | | ## " " #??????????????????????????? | | ## """ %" #??????????????????????????? | | ## """ #??????????????????????????? | | """ ## /|| """ #??????????????????????????? | | """ ## [ | "" #??????????????????????????? | | """ ## || "" #??????????????????????????? | | ## ""% #####??????????????????????? | | ## """ Y !!#??????????????????????? | | ###### ! " w !!#??????????????????????? | | #??????????????????????? | | "Y" g #??????????????????????? | | """ rg @#??????????????????????? | | #############+### g !#??????????????????????? | | ## #t% ######??????????????????????? | | "" ## # % #???????????????????????????? | | """## + #???????????????????????????? | | S"## #### #???????????????????????????? | | """## #??# #???????????????????????????? | | """## #??# #???????????????????????????? | | ## #??# #???????????????????????????? | | """ ## #??# #???????????????????????????? | | """ ## #??# ???????????????????????????? | | """ ###########??## ???????????????????????????? | | #?????????????? ???????????????????????????? | | #??####??????????????=???????????????????????????? | | ?????????????????????=???????????????????????????? | | ?????????????????????=???????????????????????????? | | ????????????????????? ??????????????????????????? | | ????????????????????? ??????????????????????????? | | ????????????????????? ??????????????????????????? | | ?????????????????????? ??????????????????????????? | | ?????????????????????? ??????????????????????????? | | ?????????????????????? ??????????????????????????? | | ?????????????????????????????????????????????????? | | ?????????????????????????????????????????????????? | | ?????????????????????????????????????????????????? | +----------------------------------------------------+ Best States ------------- Heat Dissipation 28 Energy Generation 10 Energy Capacity 250 Matter Stores 225 Matter Capacity 300 Sight Range 16 Robot Scan Range 14 Terrain Scan Density 10 Armor Coverage 225 Evasion (%) 50 Item Schematics ----------------- None Robot Schematics ------------------ None Fabricated ------------ Nothing Alien Tech Used ----------------- None Achievements -------------- None Challenges ------------ None Game ------ Seed LauncherRiotAirjet Manual? 0 Play Time 00:08:46 Cumulative 55.8 hours Start 2024.06.20 @ 17:52:23 End 2024.06.20 @ 18:00:06 Sessions 1 Manual Loads 0 Difficulty Rogue Special Mode None Game No. 87 Rogue 87 Adventurer 0 Explorer 0 Win Type - Total 0 Types 0/0/0/0/0/0/0/0/0 Lore% 31 Gallery% 42 Achievement% 31 Wizard Run 0 Options --------- Layout 0 ASCII 0 Keyboard 0 Movement Mouse Keybinds 0 Fullscreen 1 Font 24/Smallcaps Map View 76x50 Zoom Use 0% Tactical HUD 1 Map Filters NONE Filters NONE Steam 1 RUN: 22451b96-dd21-4dd0-ab4b-b85b7a28c451